bitfinex-derivatives/quotes_BTCF0:USTF0_20251118
["timestamp","ask_amount","ask_price","bid_price","bid_amount"]
[1763503772193,0.04356,92889.0,92888.0,0.02458147]
[1763503773482,0.002,92889.0,92888.0,1.47e-06]
[1763503786205,0.00043435,92889.0,92888.0,1.47e-06]
[1763503790412,0.00043435,92889.0,92888.0,0.10771437]
[1763503790616,0.04496435,92889.0,92888.0,0.12000437]
[1763503790818,0.04496435,92889.0,92888.0,0.01229147]
[1763503791120,0.04496435,92889.0,92888.0,0.12000437]
[1763503791812,0.04496435,92889.0,92888.0,0.13229437]
[1763503792708,0.04496435,92889.0,92888.0,0.02458147]
[1763503794315,0.040739,92889.0,92888.0,0.02458147]
[1763503798315,0.040739,92889.0,92888.0,0.06308872]
[1763503801413,0.02164,92889.0,92888.0,0.06308872]
[1763503802017,0.04296,92889.0,92888.0,0.06308872]
[1763503802816,0.04396,92889.0,92888.0,0.06308872]
[1763503803112,0.04496,92889.0,92888.0,0.06308872]
[1763503803820,0.04396,92889.0,92888.0,0.06308872]
[1763503804023,0.04496,92889.0,92888.0,0.06308872]
[1763503804714,0.04396,92889.0,92888.0,0.17080162]
[1763503805012,0.04496,92889.0,92888.0,0.13229437]
[1763503805623,0.04396,92889.0,92888.0,0.13229437]
[1763503805822,0.04496,92889.0,92888.0,0.13229437]
[1763503807118,0.04396,92889.0,92888.0,0.13229437]
[1763503807522,0.04496,92889.0,92888.0,0.13229437]
[1763503809417,0.04396,92889.0,92888.0,0.13229437]
[1763503809614,0.04496,92889.0,92888.0,0.13229437]
[1763503810324,0.04396,92889.0,92888.0,0.13229437]
[1763503810624,0.04496,92889.0,92888.0,0.13229437]
[1763503811122,0.04396,92889.0,92888.0,0.13229437]
[1763503811518,0.04496,92889.0,92888.0,0.13229437]
[1763503813723,0.04396,92889.0,92888.0,0.13229437]
[1763503814025,0.04496,92889.0,92888.0,0.13229437]
[1763503814620,0.04396,92889.0,92888.0,0.13229437]
[1763503814818,0.04496,92889.0,92888.0,0.13229437]
[1763503815511,0.04396,92889.0,92888.0,0.13229437]
[1763503815715,0.04496,92889.0,92888.0,0.13229437]
[1763503816712,0.04396,92889.0,92888.0,0.02458147]
[1763503816921,0.04496,92889.0,92888.0,0.02458147]
[1763503817323,0.04396,92889.0,92888.0,0.02458147]
[1763503817523,0.04496,92889.0,92888.0,0.02458147]
[1763503819017,0.04396,92889.0,92888.0,0.02458147]
[1763503819218,0.04496,92889.0,92888.0,0.02458147]
[1763503819622,0.04396,92889.0,92888.0,0.02458147]
[1763503819929,0.04496,92889.0,92888.0,0.02458147]
[1763503830027,0.04396,92889.0,92888.0,0.13229437]
[1763503830332,0.04496,92889.0,92888.0,0.02458147]
[1763503830835,0.04496,92889.0,92888.0,0.13229437]
[1763503833234,0.04496,92889.0,92888.0,0.02458147]
[1763503834033,0.04496,92889.0,92888.0,0.06337762]
[1763503834934,0.04396,92889.0,92888.0,0.06337762]
[1763503835133,0.04496,92889.0,92888.0,0.06337762]
[1763503835525,0.04396,92889.0,92888.0,0.06337762]
[1763503835727,0.04496,92889.0,92888.0,0.06337762]
[1763503836225,0.04396,92889.0,92888.0,0.06337762]
[1763503836426,0.04496,92889.0,92888.0,0.06337762]
[1763503840837,0.04496,92889.0,92888.0,0.08358762]
[1763503843928,0.04496,92889.0,92888.0,0.04479147]
[1763503846330,0.04496,92889.0,92888.0,0.15250437]
[1763503846531,0.002,92889.0,92888.0,0.15250437]
[1763503846736,0.1296997,92900.0,92899.0,0.04479]
[1763503846942,0.0239307,92900.0,92899.0,0.08358285]
[1763503847145,0.0019307,92900.0,92899.0,0.04479]
[1763503847842,0.003,92900.0,92899.0,0.08358285]
[1763503848036,0.003,92900.0,92899.0,0.04479]
[1763503848236,0.003,92900.0,92899.0,0.08354685]
[1763503848437,0.002,92900.0,92899.0,0.04479]
[1763503848946,0.001,92900.0,92899.0,0.04479]
[1763503849248,0.002,92900.0,92899.0,0.0835357]
[1763503849550,0.36096147,92907.0,92906.0,0.152482]
[1763503849551,0.00016147,92907.0,92906.0,0.152482]
[1763503849739,0.3608,92920.0,92919.0,0.152467]
[1763503849948,0.04520903,92926.0,92925.0,0.04479]
[1763503851747,0.04620903,92926.0,92925.0,0.04479]
[1763503852148,0.04520903,92926.0,92925.0,0.04479]
[1763503852350,0.04620903,92926.0,92925.0,0.04479]
[1763503852850,0.04720903,92926.0,92925.0,0.04479]
[1763503856644,0.04720903,92926.0,92925.0,0.15246]
[1763503856960,0.04720903,92926.0,92925.0,0.04479]
[1763503860352,0.04720903,92926.0,92925.0,0.15246]
[1763503860742,0.04720903,92926.0,92925.0,0.04479]
[1763503862253,0.15487793,92926.0,92925.0,0.04479]
[1763503864146,0.15387793,92926.0,92925.0,0.04479]
[1763503864356,0.15487793,92926.0,92925.0,0.04479]
[1763503865149,0.15387793,92926.0,92925.0,0.04479]
[1763503865756,0.15487793,92926.0,92925.0,0.04479]
[1763503875550,0.1503293,92917.0,92916.0,0.02916773]
[1763503875752,0.1631697,92908.0,92907.0,0.04609]
[1763503877159,0.1631697,92908.0,92907.0,0.07509626]
[1763503880663,0.1503502,92899.0,92898.0,0.00016147]
[1763503880867,0.7707902,92899.0,92898.0,0.04625147]
[1763503881261,0.7707902,92899.0,92898.0,0.04665147]
[1763503883156,0.7707902,92899.0,92898.0,0.00016147]
[1763503884865,0.4685002,92899.0,92898.0,0.04476147]
[1763503885065,0.00016147,92908.0,92907.0,0.0446]
[1763503885272,0.3608,92919.0,92918.0,0.0446]
[1763503885562,0.0019307,92920.0,92919.0,0.0446]
[1763503885766,0.0457107,92920.0,92919.0,0.0446]
[1763503885962,0.0019307,92920.0,92919.0,0.4054]
[1763503886867,0.00026903,92926.0,92925.0,0.15227]
[1763503887255,0.00026903,92926.0,92925.0,0.16321447]
[1763503887465,0.00026903,92926.0,92925.0,0.15227]
[1763503887664,0.03861727,92953.0,92951.0,0.04557]
[1763503887861,0.3608,92965.0,92955.0,0.04557]
[1763503887862,0.1076345,92956.0,92955.0,0.04557]
[1763503888058,0.0019307,92960.0,92959.0,0.04557]
[1763503888259,0.1318702,92960.0,92959.0,0.04557]
[1763503889176,0.0019307,92960.0,92959.0,0.04557]
[1763503889572,0.03861727,92979.0,92952.0,0.37425]
[1763503889573,0.00010745,92966.0,92965.0,0.04557]
[1763503889764,0.3608,92983.0,92982.0,0.04557]
[1763503889961,0.04543,92991.0,92990.0,0.04557]
[1763503890169,0.04543,92991.0,92990.0,0.04657]
[1763503890470,0.38311,92994.0,92993.0,0.04557]
[1763503890871,0.02231,92994.0,92993.0,0.04557]
[1763503891061,0.0002688,93006.0,93005.0,0.04557]
[1763503891266,0.3608,93016.0,93015.0,0.04557]
[1763503891558,0.1529771,93032.0,93031.0,0.04557]
[1763503892157,0.3608,93034.0,93033.0,0.05697]
[1763503893862,0.04543,93031.0,93030.0,0.001]
[1763503894170,0.04543,93023.0,93022.0,0.04573126]
[1763503894466,0.1529866,93023.0,93022.0,0.04573126]
[1763503894766,0.04543,93023.0,93022.0,0.04573126]
[1763503895067,0.3608,93026.0,93025.0,0.04557]
[1763503896169,0.40623,93026.0,93025.0,0.04557]
[1763503896969,0.40723,93026.0,93025.0,0.04557]
[1763503897362,0.40823,93026.0,93025.0,0.04557]
[1763503897863,0.153012,93001.0,93000.0,0.38374]
[1763503898066,0.513812,93001.0,93000.0,0.04657]
[1763503898377,0.40623,93001.0,93000.0,0.04657]
[1763503898966,0.40623,93001.0,93000.0,0.001]
[1763503899171,0.02231,92992.0,92991.0,0.04573126]
[1763503899571,0.04543,92992.0,92991.0,0.04573126]
[1763503901660,0.3608,93001.0,93000.0,0.04557]
[1763503901865,0.3608,93001.0,93000.0,0.04657]
[1763503902271,0.00016056,93010.0,93009.0,0.04557]
[1763503902471,0.04752126,93010.0,93009.0,0.04557]
[1763503904177,0.15509286,93010.0,93009.0,0.04557]
[1763503908479,0.00016056,93010.0,93009.0,0.04557]
[1763503909378,0.04543,93027.0,93026.0,0.04557]
[1763503909574,0.04543,93027.0,93024.0,0.1075553]
[1763503909575,0.0019307,93030.0,93029.0,0.04557]
[1763503910481,0.0473607,93030.0,93029.0,0.04557]
[1763503911177,0.0483607,93030.0,93029.0,0.04557]
[1763503911884,0.0483607,93030.0,93020.0,0.01016125]
[1763503911885,0.1529889,93021.0,93020.0,0.05573125]
[1763503912181,0.1529889,93021.0,93020.0,0.05673125]
[1763503912372,0.1529889,93021.0,93020.0,0.00116126]
[1763503913686,0.1539889,93021.0,93020.0,0.00116126]
[1763503913885,0.1530132,93000.0,92999.0,0.04557]
[1763503914072,0.5157439,93000.0,92999.0,0.04557]
[1763503917878,0.0242407,93000.0,92999.0,0.04557]
[1763503918386,0.0019307,93000.0,92999.0,0.04557]
[1763503920399,0.152158,93005.0,93004.0,0.04423]
[1763503920990,0.38318126,93009.0,93008.0,0.04423]
[1763503921192,0.00016126,93009.0,93008.0,0.1653539]
[1763503924788,0.5129381,93022.0,93021.0,0.1517889]
[1763503924990,0.5129377,93022.0,93021.0,0.1517889]
[1763503925793,0.02222,93022.0,93021.0,0.1517889]
[1763503926403,0.02222,93022.0,93021.0,0.04423]
[1763503926608,0.1075577,93023.0,93022.0,0.04423]
[1763503926799,0.1297777,93023.0,93022.0,0.04423]
[1763503927701,0.1307777,93023.0,93022.0,0.04423]
[1763503927902,0.1095577,93023.0,93022.0,0.04423]
[1763503928102,0.1317777,93023.0,93022.0,0.04423]
[1763503928305,0.1541377,93023.0,93022.0,0.04423]
[1763503929694,0.1680377,93023.0,93022.0,0.04423]
[1763503931699,0.1680377,93023.0,93022.0,0.02117]
[1763503931910,0.1680377,93023.0,93020.0,0.001]
[1763503931911,0.1521389,93021.0,93020.0,0.001]
[1763503932100,0.1521481,93013.0,93012.0,0.02133126]
[1763503932302,0.1521481,93013.0,93012.0,0.30427126]
[1763503942795,0.1521481,93013.0,93012.0,0.02914915]
[1763503942998,0.1075728,93009.0,93008.0,0.02898789]
[1763503943196,0.05761,92994.0,92993.0,0.03810244]
[1763503943403,0.0437,92992.0,92991.0,0.03810244]
[1763503943595,0.1512936,92991.0,92990.0,0.03810244]
[1763503944003,0.0437,92988.0,92987.0,0.4107275]
[1763503945205,0.0437,92988.0,92987.0,0.4117275]
[1763503945910,0.0427,92988.0,92987.0,0.4117275]
[1763503946308,0.0427,92988.0,92987.0,0.30413]
[1763503946512,0.0427,92988.0,92987.0,0.04533]
[1763503946712,0.05661,92988.0,92987.0,0.04533]
[1763503950311,0.00016126,92997.0,92996.0,0.1514378]
[1763503950510,0.3608,93016.0,93012.0,0.04385]
[1763503950511,0.02237,93013.0,93012.0,0.04385]
[1763503950710,0.04439,93013.0,93012.0,0.30385]
[1763503951110,0.02237,93013.0,93012.0,0.30385]
[1763503951304,0.04439,93013.0,93012.0,0.4114193]
[1763503952012,0.06098727,93038.0,93037.0,0.04385]
[1763503952211,0.3608,93043.0,93042.0,0.04385]
[1763503952212,0.40519,93043.0,93042.0,0.04385]
[1763503952508,0.41762602,93055.0,93045.0,0.04385]
[1763503952509,0.03861727,93054.0,93045.0,0.04385]
[1763503952716,0.03861727,93061.0,93045.0,0.40465]
[1763503952903,0.00869,93064.0,93045.0,0.40465]
[1763503953107,0.1075117,93062.0,93045.0,0.40465]
[1763503953309,0.06098727,93070.0,93069.0,0.04385]
[1763503953512,0.0019307,93070.0,93069.0,0.1513534]
[1763503953707,0.143013,93078.0,93077.0,0.04385]
[1763503953904,0.03552,93078.0,93077.0,0.04385]
[1763503954110,0.05754,93078.0,93077.0,0.04385]
[1763503954421,0.04439,93078.0,93077.0,0.04385]
[1763503955506,0.04439,93078.0,93077.0,0.30393]
[1763503955712,0.04639,93078.0,93077.0,0.30393]
[1763503956321,0.02202,93062.0,93061.0,0.40465]
[1763503956522,0.04439,93062.0,93061.0,0.66473]
[1763503956708,0.02237,93062.0,93061.0,0.40465]
[1763503956907,0.02237,93062.0,93061.0,0.66473]
[1763503957111,0.1298799,93064.0,93063.0,0.04385]
[1763503957316,0.1518999,93064.0,93063.0,0.30389]
[1763503958014,0.04439,93064.0,93063.0,0.30389]
[1763503958215,0.04539,93064.0,93063.0,0.30389]
[1763503959224,0.04639,93064.0,93063.0,0.30389]
[1763503959426,0.04439,93061.0,93060.0,0.00116117]
[1763503959722,0.04439,93061.0,93060.0,0.26116117]
[1763503960523,0.1519223,93044.0,93043.0,0.38281]
[1763503960722,0.1519258,93041.0,93040.0,0.001]
[1763503962417,0.1519362,93032.0,93031.0,0.00016117]
[1763503962731,0.1519362,93032.0,93001.0,0.07772372]
[1763503962732,0.1519396,93029.0,93007.0,0.3608]
[1763503962920,0.1075658,93015.0,93014.0,0.26]
[1763503963230,0.1519605,93011.0,93010.0,0.261]
[1763503963622,0.04439,93011.0,93010.0,0.261]
[1763503964124,0.04448007,93011.0,93010.0,0.261]
[1763503964321,0.15205057,93011.0,93010.0,0.001]
[1763503965025,0.04448007,93011.0,93010.0,0.001]
[1763503966525,0.04548007,93011.0,93010.0,0.001]
[1763503968434,0.15305057,93011.0,93010.0,0.001]
[1763503975934,0.15205057,93011.0,93010.0,0.001]
[1763503977135,0.15305057,93011.0,93010.0,0.001]
[1763503979526,0.15305057,93011.0,93007.0,0.3608]
[1763503979527,0.1531639,93008.0,93007.0,0.3608]
[1763503983430,0.04559,93008.0,93007.0,0.38387]
[1763503983631,0.04559,93008.0,93007.0,0.3608]
[1763503983936,0.04559,93008.0,93007.0,0.38387]
[1763503984137,0.04559,93008.0,93007.0,0.3608]
[1763503985144,0.1667609,93002.0,93001.0,0.04449126]
[1763503985439,0.05918,93002.0,93001.0,0.04449126]
[1763503986846,0.05918,93002.0,93001.0,0.00016126]
[1763503988446,0.05918,93002.0,92992.0,0.3608]
[1763503988447,0.1531813,92993.0,92992.0,0.3608]
[1763503989248,0.1531917,92984.0,92983.0,0.40513]
[1763503989447,0.15329752,92984.0,92983.0,0.40513]
[1763503989946,0.15329752,92984.0,92983.0,0.38387]
[1763503990738,0.15329752,92984.0,92983.0,0.3608]
[1763503991637,0.15329752,92984.0,92983.0,0.3618]
[1763503992038,0.15329752,92984.0,92983.0,0.3628]
[1763503992639,0.15329752,92984.0,92983.0,0.002]
[1763503993244,0.1532021,92975.0,92974.0,0.00016126]
[1763503993544,0.04559,92975.0,92974.0,0.00016126]
[1763503993940,0.04459,92975.0,92974.0,0.00016126]
[1763503995450,0.04559,92975.0,92974.0,0.00016126]
[1763503995752,0.04659,92975.0,92974.0,0.10777456]
[1763503996045,0.04659,92975.0,92974.0,0.00016126]
[1763503997651,0.04659,92975.0,92974.0,1.26e-06]
[1763503997948,0.04659,92975.0,92971.0,8.677e-05]
[1763503997949,0.04559,92972.0,92971.0,8.677e-05]
[1763503999247,0.04659,92972.0,92971.0,8.677e-05]
[1763503999939,0.04759,92972.0,92971.0,8.677e-05]
[1763504002741,0.04659,92972.0,92971.0,8.677e-05]
[1763504002945,0.04759,92972.0,92971.0,8.677e-05]
[1763504003151,0.04759,92972.0,92971.0,0.10770357]
[1763504003353,0.001,92972.0,92971.0,0.15332357]
[1763504003656,0.01359,92994.0,92983.0,0.1512129]
[1763504003848,0.1211812,92994.0,92983.0,0.5120129]
[1763504004043,0.01359,92994.0,92983.0,0.5120129]
[1763504005248,0.1211805,92994.0,92983.0,0.5120129]
[1763504006459,0.01359,92994.0,92983.0,0.5120129]
[1763504006658,0.10775326,92993.0,92983.0,0.5120129]
[1763504006856,0.00016126,92993.0,92983.0,0.5120129]
[1763504008059,0.1075955,92990.0,92983.0,0.5120129]
[1763504008859,0.10775346,92993.0,92983.0,0.5120129]
[1763504009056,0.1076007,92985.0,92983.0,0.5120129]
[1763504009254,0.02280582,92984.0,92983.0,0.5120129]
[1763504010761,0.04585582,92984.0,92983.0,0.5120129]
[1763504011060,0.00010582,92984.0,92983.0,0.5120129]
[1763504011758,0.02315582,92984.0,92983.0,0.5120129]
[1763504012265,6e-08,92993.0,92992.0,0.04414]
[1763504012456,0.0461,93025.0,93024.0,0.1516954]
[1763504012755,0.01273,93036.0,93024.0,0.1516954]
[1763504012756,0.0461,93036.0,93035.0,0.04414]
[1763504012953,0.02305,93036.0,93035.0,0.40494]
[1763504013158,0.0019307,93040.0,93039.0,0.1516781]
[1763504014959,0.0029307,93040.0,93039.0,0.1516781]
[1763504015157,0.0490307,93040.0,93039.0,0.1516781]
[1763504015744,0.0617607,93040.0,93039.0,0.04414]
[1763504015958,0.1536416,93036.0,93035.0,0.3608]
[1763504016462,0.0461,93031.0,93030.0,0.05530125]
[1763504016763,0.0461,93031.0,93030.0,0.15284976]
[1763504018154,0.1075473,93031.0,93030.0,0.04530126]
[1763504018349,0.1075151,93059.0,93045.0,0.1516711]
[1763504018551,0.0019307,93050.0,93045.0,0.5124711]
[1763504018954,0.0019307,93050.0,93045.0,0.8732711]
[1763504019146,0.01273,93060.0,93048.0,0.1075277]
[1763504019346,0.01273,93060.0,93045.0,0.8732711]
[1763504019347,0.4069,93068.0,93067.0,0.04414]
[1763504019565,0.0461,93068.0,93067.0,0.04414]
[1763504019754,0.0461,93068.0,93067.0,0.1516457]
[1763504020456,0.0461,93068.0,93067.0,0.04414]
[1763504021568,0.02505,93068.0,93067.0,0.04414]
[1763504021951,0.002,93068.0,93067.0,0.04414]
[1763504022158,0.004,93068.0,93067.0,0.04414]
[1763504024161,0.002,93068.0,93067.0,0.04414]
[1763504024751,0.0249807,93070.0,93069.0,0.04414]
[1763504024962,0.0480307,93070.0,93069.0,0.40494]
[1763504025365,0.0019307,93070.0,93069.0,0.41763]
[1763504030459,0.02321126,93077.0,93076.0,0.04414]
[1763504030663,0.04626126,93077.0,93076.0,0.04414]
[1763504031250,0.1536011,93071.0,93070.0,0.28284]
[1763504031465,0.1536011,93071.0,93070.0,0.04514]
[1763504032365,0.0461,93071.0,93070.0,0.04514]
[1763504037071,0.0461,93071.0,93070.0,0.1526423]
[1763504037272,0.0461,93071.0,93070.0,0.4122823]
[1763504038571,0.0461,93071.0,93070.0,0.7730823]
[1763504039261,0.0461,93071.0,93070.0,0.3618]
[1763504039659,0.0461,93071.0,93070.0,0.38495]
[1763504039860,0.0461,93071.0,93070.0,0.40619]
[1763504040160,0.1521327,93061.0,93060.0,0.04439]
[1763504040359,0.1521327,93061.0,93060.0,0.04539]
[1763504040360,0.04462,93061.0,93060.0,0.04539]
[1763504041668,0.1521242,93069.0,93068.0,0.04439]
[1763504041870,0.04462,93069.0,93068.0,0.5126946]
[1763504044765,0.1521234,93069.0,93068.0,0.5126946]
[1763504046072,0.1521234,93069.0,93068.0,0.38395]
[1763504046376,0.1521315,93062.0,93061.0,0.04439]
[1763504046570,0.1521315,93062.0,93061.0,0.30411]
[1763504047174,0.04462,93062.0,93061.0,0.33304677]
[1763504048075,0.1521254,93069.0,93062.0,0.1075115]
[1763504048278,0.04462,93067.0,93066.0,0.54163766]
[1763504049275,0.04462,93067.0,93066.0,0.5126969]
[1763504049666,0.1521257,93067.0,93066.0,0.5126969]
[1763504053177,0.1521257,93067.0,93066.0,0.40519]
[1763504055877,0.0019307,93070.0,93066.0,0.40519]
[1763504056174,0.1074919,93079.0,93076.0,0.04439]
[1763504056476,0.0019307,93080.0,93076.0,0.1518854]
[1763504056880,0.00026857,93086.0,93085.0,0.151875]
[1763504057084,0.03861727,93099.0,93098.0,0.15186]
[1763504057386,0.1074596,93107.0,93104.0,0.107463]
[1763504057575,0.39941727,93109.0,93108.0,0.1518484]
[1763504057771,0.3608,93109.0,93108.0,0.1518484]
[1763504057976,0.40542,93109.0,93108.0,0.04439]
[1763504058172,0.03861727,93115.0,93108.0,0.04439]
[1763504058378,0.00016077,93118.0,93117.0,0.04439]
[1763504058778,0.00016077,93118.0,93117.0,0.151838]
[1763504059172,0.00016077,93118.0,93117.0,0.512638]
[1763504059872,0.00216077,93118.0,93117.0,0.512638]
[1763504060884,0.00316077,93118.0,93117.0,0.512638]
[1763504061480,0.41832,93136.0,93135.0,0.04458]
[1763504062679,0.05852,93136.0,93135.0,0.04458]
[1763504063782,0.05952,93136.0,93135.0,0.04458]
[1763504065685,0.04502,93131.0,93130.0,0.03225999]
[1763504065894,0.04502,93131.0,93130.0,0.001]
[1763504066081,0.04502,93131.0,93130.0,0.02226]
[1763504066582,0.04502,93131.0,93130.0,0.04369]
[1763504067289,0.04602,93131.0,93130.0,0.04369]
[1763504067790,0.04702,93131.0,93130.0,0.04369]
[1763504068785,0.04702,93131.0,93130.0,0.001]
[1763504069091,0.04433,93127.0,93126.0,0.00016107]
[1763504069286,0.40513,93127.0,93126.0,0.00016107]
[1763504069689,0.40513,93127.0,93107.0,0.40531]
[1763504069690,0.04433,93108.0,93107.0,0.40531]
[1763504071686,0.1517884,93108.0,93107.0,0.40531]
[1763504072587,0.1517884,93108.0,93107.0,0.38207]
[1763504073293,0.1517884,93108.0,93107.0,0.3608]
[1763504073786,0.01294,93104.0,93099.0,0.40531]
[1763504073992,0.04433,93101.0,93100.0,0.04551]
[1763504079296,0.01852547,93101.0,93100.0,0.04551]
[1763504079493,0.04053547,93101.0,93100.0,0.04551]
[1763504080093,0.04053547,93101.0,93100.0,0.05857]
[1763504085597,0.04053547,93101.0,93100.0,0.04551]
[1763504087193,0.02201,93101.0,93100.0,0.04551]
[1763504087403,0.03704986,93101.0,93100.0,0.04551]
[1763504094609,0.03704986,93101.0,93100.0,0.1529776]
[1763504096710,0.02201,93102.0,93101.0,0.1519765]
[1763504097006,0.0019307,93110.0,93109.0,0.04451]
[1763504097207,0.00016074,93117.0,93116.0,0.04414]
[1763504097407,0.00016074,93117.0,93116.0,0.40494]
[1763504098308,0.00016074,93117.0,93116.0,0.43383784]
[1763504098707,0.04383,93128.0,93127.0,0.04414]
[1763504098913,0.04383,93128.0,93127.0,0.1515765]
[1763504099111,0.02143,93128.0,93127.0,0.1515765]
[1763504100208,0.04483,93128.0,93127.0,0.1515765]
[1763504100709,0.04483,93128.0,93127.0,0.04414]
[1763504100915,0.04583,93128.0,93127.0,0.04414]
[1763504103315,0.002,93128.0,93127.0,0.04414]
[1763504103521,0.02343,93128.0,93127.0,0.04414]
[1763504103722,0.04583,93128.0,93127.0,0.04414]
[1763504109113,0.04383,93125.0,93124.0,0.3608]
[1763504109512,0.04383,93121.0,93120.0,0.01099999]
[1763504109822,0.04383,93119.0,93118.0,0.00016107]
[1763504111410,0.1512757,93119.0,93118.0,0.00016107]
[1763504111724,0.1522757,93119.0,93118.0,0.00016107]
[1763504112824,0.1512907,93106.0,93101.0,0.02889973]
[1763504113021,0.04383,93101.0,93100.0,0.05179973]
[1763504113218,0.04383,93101.0,93100.0,0.0229]
[1763504113615,0.04383,93101.0,93100.0,0.05889]
[1763504114320,0.04383,93101.0,93100.0,0.04514]
[1763504114920,0.04383,93094.0,93093.0,0.0729824]
[1763504115114,0.04383,93094.0,93093.0,0.04414]
[1763504116013,0.04383,93092.0,93091.0,0.00016107]
[1763504116524,0.04383,93077.0,93076.0,0.40494]
[1763504116824,0.1513288,93073.0,93072.0,0.0507424]
[1763504117024,0.1503288,93073.0,93072.0,0.0219]
[1763504117215,0.04383,93068.0,93067.0,0.0219]
[1763504117421,0.1513392,93064.0,93063.0,0.04414]
[1763504117615,0.1513392,93064.0,93063.0,0.0219]
[1763504118719,0.04383,93061.0,93060.0,0.1526538]
[1763504118914,0.04283,93061.0,93060.0,0.04514]
[1763504119115,0.1503427,93061.0,93060.0,0.04514]
[1763504122918,0.1503427,93061.0,93060.0,0.0229]
[1763504123118,0.1503427,93061.0,93060.0,0.001]
[1763504123312,0.149965,93059.0,93058.0,0.00016116]
[1763504123516,0.4683061,93067.0,93058.0,0.00016116]
[1763504123517,0.3608,93087.0,93076.0,0.1516353]
[1763504123822,0.02103,93105.0,93104.0,0.164962]
[1763504124126,0.3608,93118.0,93113.0,0.04414]
[1763504124127,0.1499015,93114.0,93113.0,0.04414]
[1763504125225,0.04245,93111.0,93110.0,0.001]
[1763504125425,0.04245,93111.0,93110.0,0.04514]
[1763504125628,0.1499049,93111.0,93110.0,0.04514]
[1763504125819,0.1499049,93111.0,93110.0,0.001]
[1763504126214,0.1499049,93111.0,93104.0,0.00016116]
[1763504126215,0.1074619,93105.0,93104.0,0.00016116]
[1763504126420,0.1499119,93105.0,93104.0,0.04430116]
[1763504128125,0.1509119,93105.0,93104.0,0.04430116]
[1763504128328,0.1509119,93105.0,93091.0,0.3608]
[1763504128329,0.04262,93095.0,93091.0,0.3608]
[1763504128628,0.04262,93092.0,93091.0,0.04397]
[1763504129021,0.02137,93092.0,93091.0,0.04397]
[1763504129331,0.7706111,93097.0,93096.0,0.05699]
[1763504130527,0.1501073,93083.0,93082.0,0.04413116]
[1763504130733,0.4098273,93083.0,93082.0,0.00016116]
[1763504131417,0.04262,93068.0,93060.0,0.01302]
[1763504131931,0.04262,93068.0,93067.0,0.40477]
[1763504133129,0.04262,93059.0,93058.0,0.02275116]
[1763504133319,0.04262,93059.0,93058.0,0.04413116]
[1763504135829,0.04262,93059.0,93058.0,0.02275116]
[1763504136134,0.04262,93059.0,93058.0,0.00016116]
[1763504137929,0.04262,93059.0,93058.0,0.04413116]
[1763504138426,0.0019307,93060.0,93058.0,0.00016116]
[1763504138621,0.3608,93074.0,93064.0,0.1075087]
[1763504138622,0.0019307,93070.0,93064.0,0.1075087]
[1763504138822,0.0019307,93070.0,93069.0,0.05699]
[1763504140031,0.0029307,93070.0,93069.0,0.05699]
[1763504140918,0.0019307,93070.0,93069.0,0.05699]
[1763504141124,0.109433,93070.0,93069.0,0.05699]
[1763504143433,0.0029307,93070.0,93069.0,0.05699]
[1763504147236,0.0243007,93070.0,93069.0,0.05699]
[1763504148928,0.0029307,93070.0,93069.0,0.05699]
[1763504151836,0.0455507,93070.0,93069.0,0.05699]
[1763504152541,0.0243007,93070.0,93069.0,0.05699]
[1763504152734,0.0029307,93070.0,93069.0,0.1644934]
[1763504153332,0.0243007,93070.0,93069.0,0.1644934]
[1763504153831,0.0243007,93070.0,93069.0,0.05699]
[1763504154945,0.0455507,93070.0,93069.0,0.05699]
[1763504155140,0.153053,93070.0,93069.0,0.05699]
[1763504155733,0.153053,93070.0,93069.0,0.04397]
[1763504157737,0.04364,93059.0,93058.0,0.02900356]
[1763504157937,0.0019307,93060.0,93059.0,0.04512]
[1763504158141,0.0019307,93060.0,93059.0,0.40592]
[1763504158334,0.25964,93068.0,93067.0,0.04512]
[1763504158534,0.25964,93068.0,93067.0,0.1526257]
[1763504159641,0.3930846,93068.0,93067.0,0.04512]
[1763504161635,0.25964,93068.0,93067.0,0.04512]
[1763504165051,0.28558,93068.0,93067.0,0.04512]
[1763504166148,0.28558,93068.0,93067.0,0.07401893]
[1763504168050,0.28558,93068.0,93067.0,0.04512]
[1763504170546,0.28558,93068.0,93067.0,0.40592]
[1763504172238,0.3930846,93068.0,93067.0,0.40592]
[1763504176250,0.3930846,93068.0,93059.0,0.3608]
[1763504176251,0.1334494,93064.0,93063.0,0.08370154]
[1763504176556,0.1334494,93064.0,93063.0,0.04512]
[1763504178552,0.1334529,93061.0,93060.0,0.03958154]
[1763504178751,0.3930129,93061.0,93060.0,0.03958154]
[1763504178954,0.3930129,93061.0,93060.0,0.001]
[1763504180848,0.1334552,93059.0,93058.0,0.00016116]
[1763504181052,0.4942552,93059.0,93058.0,0.00016116]
[1763504183159,0.5805145,93059.0,93058.0,0.00016116]
[1763504183454,0.1075221,93053.0,93052.0,0.02897222]
[1763504183653,0.1075221,93053.0,93051.0,0.02897222]
[1763504183654,0.3929821,93053.0,93051.0,0.02897222]
[1763504183859,0.02594,93052.0,93051.0,0.02897222]
[1763504184058,0.02594,93052.0,93051.0,0.04409]
[1763504184260,0.02594,93052.0,93051.0,0.07301984]
[1763504184760,0.28546,93052.0,93051.0,0.07301984]
[1763504185462,0.02594,93052.0,93051.0,0.07301984]
[1763504185754,0.28546,93052.0,93051.0,0.07301984]
[1763504186160,0.28546,93052.0,93051.0,0.04409]
[1763504187259,0.28546,93052.0,93051.0,0.02293]
[1763504187860,0.1334644,93051.0,93050.0,0.02992984]
[1763504188562,0.1334644,93051.0,93050.0,0.07353984]
[1763504189261,0.3929844,93051.0,93050.0,0.07353984]
[1763504189653,0.3929844,93051.0,93050.0,0.05172984]
[1763504190162,0.3929844,93051.0,93050.0,0.0228]
[1763504191656,0.3929844,93051.0,93050.0,0.04461]
[1763504193367,0.3929844,93051.0,93050.0,0.0228]
[1763504194158,0.3929844,93051.0,93050.0,0.04461]
[1763504202174,0.3929844,93051.0,93050.0,0.07351587]
[1763504203274,0.3929844,93051.0,93050.0,0.04461]
[1763504206364,0.25952,93051.0,93050.0,0.04461]
[1763504206677,0.25952,93051.0,93050.0,0.1521354]